bitfinex-derivatives/quotes_BTCF0:USTF0_20230701
["timestamp","ask_amount","ask_price","bid_price","bid_amount"]
[1688187054612,0.24311564,30422.0,30421.0,0.37047845]
[1688187055707,0.24311564,30422.0,30421.0,0.38870814]
[1688187055907,0.22338764,30422.0,30421.0,0.38870814]
[1688187056295,0.22338764,30422.0,30421.0,0.37047845]
[1688187057005,0.24311564,30422.0,30421.0,0.37047845]
[1688187057707,0.24311564,30422.0,30421.0,0.351629]
[1688187058494,0.22338764,30422.0,30421.0,0.351629]
[1688187058910,0.22338764,30422.0,30421.0,0.38870814]
[1688187060410,0.19722778,30422.0,30421.0,0.38870814]
[1688187061301,0.19722778,30422.0,30421.0,0.37047845]
[1688187061500,0.04779142,30422.0,30421.0,0.37047845]
[1688187062011,0.2974297,30422.0,30421.0,0.351629]
[1688187062197,0.35182521,30422.0,30421.0,0.351629]
[1688187063003,0.2974297,30422.0,30421.0,0.351629]
[1688187063601,0.2974307,30422.0,30421.0,0.351629]
[1688187066810,0.06752042,30422.0,30421.0,0.351629]
[1688187067315,0.2974307,30422.0,30421.0,0.351629]
[1688187067616,0.2777017,30422.0,30421.0,0.351629]
[1688187067817,0.04779142,30422.0,30421.0,0.38870814]
[1688187068611,0.04779142,30422.0,30421.0,0.37047845]
[1688187068807,0.05247906,30422.0,30421.0,0.37047845]
[1688187069005,0.00486812,30422.0,30421.0,0.37047845]
[1688187070005,0.00486812,30422.0,30421.0,0.38870814]
[1688187071619,0.00486812,30422.0,30421.0,0.37047845]
[1688187072616,0.02459712,30422.0,30421.0,0.37047845]
[1688187072802,0.22157829,30422.0,30421.0,0.03857845]
[1688187073010,0.22157829,30422.0,30421.0,0.019729]
[1688187074212,0.02459712,30422.0,30421.0,0.019729]
[1688187074411,0.0722114,30422.0,30421.0,0.019729]
[1688187080014,0.33470785,30422.0,30421.0,0.019729]
[1688187080821,0.40272919,30422.0,30421.0,0.019729]
[1688187083031,0.40272919,30422.0,30420.0,0.01973]
[1688187083220,0.04761428,30421.0,30420.0,0.01973]
[1688187083418,0.07207188,30421.0,30420.0,0.01973]
[1688187084115,0.25434104,30421.0,30420.0,0.01973]
[1688187084325,0.30195532,30421.0,30420.0,0.019732]
[1688187084643,0.30195532,30421.0,30419.0,0.05]
[1688187084928,0.04761428,30420.0,30419.0,0.05]
[1688187085228,0.0720769,30420.0,30419.0,0.05]
[1688187085431,0.0720769,30420.0,30419.0,0.069732]
[1688187088124,0.4328769,30420.0,30419.0,0.069732]
[1688187089023,0.66276034,30420.0,30419.0,0.069732]
[1688187091621,0.4328769,30420.0,30419.0,0.069732]
[1688187092330,0.66273236,30420.0,30419.0,0.069732]
[1688187099031,0.38526262,30420.0,30419.0,0.069732]
[1688187099621,0.58225285,30420.0,30419.0,0.069732]
[1688187104028,0.56252085,30420.0,30419.0,0.069732]
[1688187104330,0.58225285,30420.0,30419.0,0.069732]
[1688187106537,0.66273446,30420.0,30419.0,0.069732]
[1688187111245,0.432879,30420.0,30419.0,0.069732]
[1688187121944,0.66276645,30420.0,30419.0,0.069732]
[1688187129049,0.99328737,30420.0,30419.0,0.069732]
[1688187129255,0.76339992,30420.0,30419.0,0.069732]
[1688187136558,0.92546057,30420.0,30419.0,0.069732]
[1688187136757,0.66296412,30420.0,30419.0,0.069732]
[1688187137555,0.432879,30420.0,30419.0,0.069732]
[1688187144062,0.50090485,30420.0,30419.0,0.069732]
[1688187151565,0.432879,30420.0,30419.0,0.069732]
[1688187164777,0.66294975,30420.0,30419.0,0.069732]
[1688187164980,0.432879,30420.0,30419.0,0.069732]
[1688187165278,0.66295371,30420.0,30419.0,0.069732]
[1688187165777,0.30215371,30420.0,30419.0,0.069732]
[1688187166579,0.072079,30420.0,30419.0,0.069732]
[1688187166879,0.40301232,30420.0,30419.0,0.069732]
[1688187174088,0.30214778,30420.0,30419.0,0.069732]
[1688187177686,0.072079,30420.0,30419.0,0.069732]
[1688187181183,0.072079,30420.0,30419.0,0.05]
[1688187181576,0.072079,30420.0,30417.0,0.683901]
[1688187181577,0.14010492,30420.0,30417.0,0.3009]
[1688187181789,0.37855127,30419.0,30417.0,0.3009]
[1688187181988,0.019731,30418.0,30417.0,0.320631]
[1688187182295,0.06734738,30418.0,30417.0,0.320631]
[1688187188697,0.07234685,30418.0,30417.0,0.320631]
[1688187189488,0.30236387,30418.0,30417.0,0.320631]
[1688187189785,0.07234685,30418.0,30417.0,0.320631]
[1688187195783,0.30236387,30418.0,30417.0,0.320631]
[1688187196490,0.32929908,30418.0,30417.0,0.320631]
[1688187196681,0.43021916,30418.0,30417.0,0.320631]
[1688187197990,0.36219103,30418.0,30417.0,0.320631]
[1688187198183,0.09928206,30418.0,30417.0,0.320631]
[1688187204193,0.28159533,30418.0,30417.0,0.320631]
[1688187204389,0.32921171,30418.0,30417.0,0.320631]
[1688187207294,0.09928206,30418.0,30417.0,0.320631]
[1688187215105,0.32921171,30418.0,30417.0,0.320631]
[1688187219112,0.5445043,30418.0,30417.0,0.320631]
[1688187219416,0.36219103,30418.0,30417.0,0.320631]
[1688187223119,0.4302186,30418.0,30417.0,0.320631]
[1688187226728,0.32928751,30418.0,30417.0,0.320631]
[1688187234236,0.43021878,30418.0,30417.0,0.320631]
[1688187236836,0.78451878,30418.0,30417.0,0.320631]
[1688187237430,0.73785257,30418.0,30417.0,0.320631]
[1688187237731,0.38355257,30418.0,30417.0,0.675731]
[1688187237936,0.38355257,30418.0,30417.0,0.71281014]
[1688187240443,0.31552482,30418.0,30417.0,0.71281014]
[1688187241433,0.31552482,30418.0,30417.0,0.675731]
[1688187241633,0.31552482,30418.0,30417.0,0.69396069]
[1688187241930,0.05261585,30418.0,30417.0,0.675731]
[1688187242130,0.05261585,30418.0,30417.0,0.69396069]
[1688187242329,0.05261585,30418.0,30417.0,0.675731]
[1688187242731,0.05261585,30418.0,30417.0,0.69396069]
[1688187243640,0.07234685,30418.0,30417.0,0.675731]
[1688187244042,0.30240437,30418.0,30417.0,0.675731]
[1688187244541,0.30240437,30418.0,30417.0,0.70213774]
[1688187245040,0.65450437,30418.0,30417.0,0.70213774]
[1688187246131,0.65450437,30418.0,30417.0,0.675731]
[1688187247741,0.65450437,30418.0,30417.0,0.656]
[1688187248140,0.65450437,30418.0,30417.0,0.675731]
[1688187254949,0.65450437,30418.0,30417.0,0.320631]
[1688187256848,0.75538488,30418.0,30417.0,0.320631]
[1688187257241,0.68735582,30418.0,30417.0,0.320631]
[1688187258137,0.54554074,30418.0,30417.0,0.674231]
[1688187258345,0.20216708,30418.0,30417.0,0.71131014]
[1688187271361,0.00499947,30418.0,30417.0,0.71131014]
[1688187279959,0.00499947,30418.0,30417.0,0.69308045]
[1688187280365,0.00499947,30418.0,30417.0,0.71131014]
[1688187280674,0.00499947,30418.0,30417.0,0.69308045]
[1688187280877,0.00499947,30418.0,30417.0,0.71131014]
[1688187285377,0.00499947,30418.0,30417.0,0.69308045]
[1688187285970,0.00499947,30418.0,30417.0,0.71131014]
[1688187286872,0.20216708,30418.0,30417.0,0.71131014]
[1688187287079,0.22189808,30418.0,30417.0,0.674231]
[1688187289367,0.22189808,30418.0,30417.0,0.69308045]
[1688187290780,0.22189808,30418.0,30417.0,0.674231]
[1688187291968,0.20216708,30418.0,30417.0,0.674231]
[1688187294475,0.00499947,30418.0,30417.0,0.674231]
[1688187297467,0.00499947,30418.0,30417.0,0.69308045]
[1688187300988,0.00499947,30418.0,30417.0,0.674231]
[1688187301282,0.37903047,30418.0,30417.0,0.372731]
[1688187301688,0.35929947,30418.0,30417.0,0.372731]
[1688187301878,0.00499947,30418.0,30417.0,0.373331]
[1688187303482,0.00499947,30418.0,30417.0,0.39218045]
[1688187304086,0.20216708,30418.0,30417.0,0.39218045]
[1688187304887,0.20216708,30418.0,30417.0,0.373331]
[1688187307886,0.22189708,30418.0,30417.0,0.373331]
[1688187309396,0.07234595,30418.0,30417.0,0.373331]
[1688187311989,0.30236187,30418.0,30417.0,0.373331]
[1688187312995,0.07234595,30418.0,30417.0,0.373331]
[1688187313683,0.30236187,30418.0,30417.0,0.373331]
[1688187314297,0.07234595,30418.0,30417.0,0.373331]
[1688187314490,0.30236187,30418.0,30417.0,0.373331]
[1688187314900,0.07234595,30418.0,30417.0,0.373331]
[1688187315490,0.30236187,30418.0,30417.0,0.373331]
[1688187317000,0.22197533,30418.0,30417.0,0.373331]
[1688187317299,0.62169383,30418.0,30417.0,0.019731]
[1688187317495,0.42444797,30418.0,30417.0,0.019731]
[1688187320602,0.65446389,30418.0,30416.0,0.3810251]
[1688187320802,0.54986541,30417.0,30416.0,0.3810251]
[1688187320985,0.42005158,30417.0,30416.0,0.0202251]
[1688187321191,0.42534948,30417.0,30416.0,0.0202251]
[1688187322086,0.42534948,30417.0,30416.0,0.0004931]
[1688187324707,0.65529,30417.0,30416.0,0.0004931]
[1688187328310,1.117092,30417.0,30413.0,0.02694138]
[1688187328510,1.117092,30417.0,30407.0,0.4034]
[1688187328511,1.30110585,30414.0,30407.0,0.4034]
[1688187328804,0.373537,30408.0,30407.0,0.739936]
[1688187329006,0.373537,30408.0,30407.0,0.423136]
[1688187329215,0.373537,30408.0,30407.0,0.05]
[1688187329510,0.57058449,30408.0,30405.0,0.065797]
[1688187329699,0.019739,30405.0,30404.0,0.0004933]
[1688187329899,0.371839,30405.0,30404.0,0.0004933]
[1688187330113,0.42623451,30405.0,30404.0,0.0004933]
[1688187330507,0.42623451,30405.0,30403.0,0.019739]
[1688187330717,0.3524,30404.0,30403.0,0.019739]
[1688187330905,0.372139,30404.0,30403.0,0.019739]
[1688187333503,0.375139,30404.0,30403.0,0.375139]
[1688187334806,0.3554,30404.0,30403.0,0.375139]
[1688187335010,0.3527,30404.0,30403.0,0.371739]
[1688187335210,0.3527,30404.0,30403.0,0.019739]
[1688187337599,0.3527,30404.0,30403.0,0.05681814]
[1688187337800,0.3538,30406.0,30403.0,0.77271814]
[1688187338009,0.07640017,30408.0,30406.0,0.019738]
[1688187338214,0.05,30408.0,30407.0,0.41221714]
[1688187338409,0.3554,30409.0,30407.0,0.72321714]
[1688187338604,0.3554,30409.0,30408.0,0.46120254]
[1688187339821,0.3554,30409.0,30408.0,0.41021614]
[1688187341332,0.42953151,30409.0,30408.0,0.373137]
[1688187342833,0.42953151,30409.0,30408.0,0.019737]
[1688187343628,0.375136,30409.0,30408.0,0.41021614]
[1688187343932,0.375136,30409.0,30408.0,0.39198645]
[1688187344834,0.375136,30409.0,30408.0,0.373137]
[1688187347929,0.375136,30409.0,30408.0,0.39198645]
[1688187347930,0.3554,30409.0,30408.0,0.39198645]
[1688187348443,0.3554,30409.0,30408.0,0.41021614]
[1688187349328,0.3554,30409.0,30408.0,0.373137]
[1688187349533,0.42953151,30409.0,30408.0,0.373137]
[1688187351237,0.375136,30409.0,30408.0,0.373137]
[1688187351542,0.3554,30409.0,30408.0,0.373137]
[1688187352338,0.3554,30409.0,30408.0,0.41021614]
[1688187353644,0.3554,30409.0,30408.0,0.39198645]
[1688187354540,0.3554,30409.0,30408.0,0.41021614]
[1688187354740,0.3554,30409.0,30408.0,0.39198645]
[1688187354949,0.7166933,30411.0,30408.0,0.41221614]
[1688187355252,0.7166933,30411.0,30410.0,0.3554]
[1688187355434,0.7166933,30411.0,30410.0,0.375136]
[1688187355747,0.0004933,30411.0,30410.0,0.39398545]
[1688187356130,0.0004933,30411.0,30410.0,0.41221514]
[1688187358449,0.0004933,30411.0,30410.0,0.77301514]
[1688187359040,0.0004933,30411.0,30410.0,0.77961514]
[1688187359341,0.05,30417.0,30413.0,0.3522]
[1688187359547,0.05,30417.0,30416.0,0.3554]
[1688187359740,0.05,30417.0,30416.0,0.41221114]
[1688187359946,0.91324749,30419.0,30416.0,0.41221114]
[1688187360244,0.91324749,30419.0,30418.0,0.371731]
[1688187361154,0.93297749,30419.0,30418.0,0.371731]
[1688187361543,0.57217749,30419.0,30418.0,0.371731]
[1688187361852,0.59860515,30419.0,30418.0,0.371731]
[1688187362052,0.40155766,30419.0,30418.0,0.371731]
[1688187364050,0.40155766,30419.0,30418.0,0.39058045]
[1688187364255,0.38182766,30419.0,30418.0,0.76961014]
[1688187364652,0.24754063,30421.0,30418.0,0.76961014]
[1688187364849,0.26726963,30421.0,30420.0,0.3536]
[1688187365045,0.29294413,30421.0,30420.0,0.373329]
[1688187365250,0.29294413,30421.0,30420.0,0.39217845]
[1688187365451,0.09589664,30421.0,30420.0,0.39217845]
[1688187365757,0.11489664,30421.0,30420.0,0.73090814]
[1688187365969,0.13489664,30421.0,30420.0,0.73090814]
[1688187366456,0.11589664,30421.0,30420.0,0.73090814]
[1688187366754,0.09589664,30421.0,30420.0,0.73090814]
[1688187367453,0.45129664,30421.0,30420.0,0.73090814]
[1688187368154,0.45129664,30421.0,30420.0,0.693829]
[1688187368761,0.45667467,30421.0,30420.0,0.693829]
[1688187370862,0.45667467,30421.0,30420.0,0.340229]
[1688187374759,0.45667467,30421.0,30420.0,0.019729]
[1688187374965,0.45667467,30421.0,30411.0,0.0066]
[1688187374966,0.65372216,30421.0,30416.0,0.019731]
[1688187375168,0.3554,30417.0,30416.0,0.019731]
[1688187375465,0.375131,30417.0,30416.0,0.019731]
[1688187375660,0.38054152,30417.0,30416.0,0.019731]
[1688187379069,0.38054152,30417.0,30416.0,0.3533]
[1688187379269,0.38054152,30417.0,30414.0,0.42049314]
[1688187379465,0.38054152,30417.0,30416.0,0.019732]
[1688187379466,0.02514152,30417.0,30416.0,0.019732]
[1688187379665,0.38054152,30417.0,30416.0,0.019732]
[1688187382162,0.36081052,30417.0,30416.0,0.375132]
[1688187382662,0.36081052,30417.0,30416.0,0.41221114]
[1688187383865,0.36081052,30417.0,30416.0,0.39398145]
[1688187384663,0.36081052,30417.0,30416.0,0.41221114]
[1688187385071,0.52309372,30417.0,30416.0,0.41021114]
[1688187385971,0.35921052,30417.0,30416.0,0.41021114]
[1688187386368,0.52309372,30417.0,30416.0,0.41021114]
[1688187386571,0.35921052,30417.0,30416.0,0.41021114]
[1688187386971,0.52309372,30417.0,30416.0,0.41021114]
[1688187387169,0.00541052,30417.0,30416.0,0.40933208]
[1688187392881,0.16929372,30417.0,30416.0,0.40933208]
[1688187396269,0.00541052,30417.0,30416.0,0.40933208]
[1688187396577,0.57217649,30420.0,30416.0,0.39110239]
[1688187396778,0.05439551,30419.0,30416.0,0.03770239]
[1688187396979,0.25693202,30419.0,30418.0,0.353]
[1688187397181,0.25693202,30419.0,30418.0,0.372731]
[1688187397975,0.20253651,30419.0,30418.0,0.372731]
[1688187399067,0.25693202,30419.0,30418.0,0.372731]
[1688187399480,0.48682075,30419.0,30418.0,0.372731]
[1688187399680,0.33739173,30419.0,30418.0,0.372731]
[1688187400272,0.28299622,30419.0,30418.0,0.372731]
[1688187400684,0.28299622,30419.0,30418.0,0.39096069]
[1688187400891,0.05310749,30419.0,30418.0,0.372731]
[1688187404882,0.66841646,30419.0,30418.0,0.375131]
[1688187405679,0.75617237,30419.0,30418.0,0.375131]
[1688187406887,0.73644237,30419.0,30418.0,0.375131]
[1688187407083,0.68814746,30419.0,30418.0,0.375131]
[1688187407389,0.655288,30419.0,30418.0,0.375131]
[1688187408381,0.65528994,30419.0,30418.0,0.375131]
[1688187409383,0.66178994,30419.0,30418.0,0.375131]
[1688187409691,0.63555994,30419.0,30418.0,0.375131]
[1688187410390,0.70968445,30419.0,30418.0,0.375131]
[1688187410592,0.65528894,30419.0,30418.0,0.375131]
[1688187411008,0.65528894,30419.0,30418.0,0.39398045]
[1688187411009,0.63555994,30419.0,30418.0,0.39398045]
[1688187414485,0.73644146,30419.0,30418.0,0.39398045]
[1688187414994,0.73614146,30419.0,30418.0,0.39058045]
[1688187415385,0.73614146,30419.0,30418.0,0.371731]
[1688187422195,0.40520749,30419.0,30418.0,0.371731]
[1688187422984,0.42493749,30419.0,30418.0,0.371731]
[1688187423702,0.65504628,30419.0,30418.0,0.39058045]
[1688187424082,0.63531628,30419.0,30418.0,0.39058045]
[1688187424999,0.63591628,30419.0,30418.0,0.03858045]
[1688187425493,0.63591628,30419.0,30418.0,0.019731]
[1688187428197,0.40580749,30419.0,30418.0,0.019731]
[1688187429493,0.47383297,30419.0,30418.0,0.019731]
[1688187429700,0.73674194,30419.0,30418.0,0.019731]
[1688187433706,0.49356497,30419.0,30418.0,0.019731]
[1688187436203,0.85436497,30419.0,30418.0,0.019731]
[1688187436506,1.14972506,30419.0,30416.0,0.059193]
[1688187436706,0.68138111,30419.0,30418.0,0.019733]
[1688187437001,1.16257615,30419.0,30418.0,0.019733]
[1688187440699,1.42552973,30419.0,30418.0,0.019733]
[1688187444611,1.16257615,30419.0,30418.0,0.019733]
[1688187444810,0.80177615,30419.0,30418.0,0.019733]
[1688187445011,1.16257615,30419.0,30418.0,0.019733]
[1688187450022,1.45842231,30419.0,30418.0,0.019733]
[1688187452013,1.72132719,30419.0,30418.0,0.019733]
[1688187452322,1.42548103,30419.0,30418.0,0.019733]
[1688187453621,1.3574486,30419.0,30418.0,0.019733]
[1688187454713,1.07481172,30419.0,30418.0,0.019733]
[1688187454918,0.63694544,30419.0,30418.0,0.374833]
[1688187455125,0.63694544,30419.0,30418.0,0.39368245]
[1688187456129,0.63694544,30419.0,30418.0,0.374833]
[1688187467039,0.47493761,30419.0,30418.0,0.374833]
[1688187467242,0.73784249,30419.0,30418.0,0.374833]
[1688187469041,0.73784249,30419.0,30418.0,0.40064093]
[1688187470943,0.73784249,30419.0,30418.0,0.374833]
[1688187474625,0.89986779,30419.0,30418.0,0.374833]
[1688187474827,0.63696291,30419.0,30418.0,0.374833]
[1688187476445,0.63696291,30419.0,30418.0,0.39368245]
[1688187477837,0.63696291,30419.0,30418.0,0.374833]
[1688187478343,0.78744372,30419.0,30418.0,0.374833]
[1688187478555,0.78744372,30419.0,30418.0,0.019733]
[1688187478733,1.11837864,30419.0,30418.0,0.019733]
[1688187479131,1.11837864,30419.0,30415.0,0.08609579]
[1688187479132,1.11837864,30419.0,30415.0,0.0592]
[1688187479333,0.94622683,30416.0,30415.0,0.0592]
[1688187479631,0.7892679,30416.0,30415.0,0.0592]
[1688187482532,0.7835567,30416.0,30415.0,0.0592]
[1688187484740,0.7835567,30416.0,30414.0,0.02022714]
[1688187485033,0.65157387,30415.0,30414.0,0.02022714]
[1688187485537,0.4216577,30415.0,30414.0,0.02022714]
[1688187486142,0.4216577,30415.0,30414.0,0.33912714]
[1688187489544,0.65157387,30415.0,30414.0,0.33912714]
[1688187490854,0.4216577,30415.0,30414.0,0.02022714]
[1688187491144,0.4216577,30415.0,30409.0,0.049346]
[1688187491145,0.026236,30413.0,30409.0,0.049346]
[1688187491351,0.93292047,30410.0,30409.0,0.049346]
[1688187491855,0.735938,30410.0,30409.0,0.049346]
[1688187492438,0.93282358,30410.0,30409.0,0.049346]
[1688187494453,0.735938,30410.0,30409.0,0.049346]
[1688187495251,0.93282358,30410.0,30409.0,0.049346]
[1688187495447,0.93282358,30410.0,30409.0,0.05466129]
[1688187496550,1.14437244,30410.0,30409.0,0.00531529]
[1688187496737,1.14437244,30410.0,30406.0,0.05971226]
[1688187496938,0.73434,30407.0,30406.0,0.05971226]
[1688187497147,0.73434,30407.0,30406.0,0.06647046]
[1688187500948,0.73434,30407.0,30406.0,0.00725146]
[1688187501255,0.73434,30407.0,30406.0,0.02963272]
[1688187501454,0.73434,30407.0,30406.0,0.02023326]
[1688187501658,0.73434,30407.0,30406.0,0.0296317]
[1688187505862,0.7146,30407.0,30406.0,0.3420317]
[1688187506564,0.3554,30407.0,30406.0,0.6954317]
[1688187506758,0.3554,30407.0,30406.0,0.727859]
[1688187508253,0.3554,30407.0,30406.0,0.70962931]
[1688187508458,0.3554,30407.0,30406.0,0.727859]
[1688187509063,0.3554,30407.0,30406.0,1.088659]
[1688187509652,0.3521,30410.0,30406.0,1.088659]
[1688187509970,0.3521,30410.0,30409.0,0.3551]
[1688187510265,0.3521,30410.0,30409.0,0.3795286]
[1688187510464,0.3521,30410.0,30409.0,0.41660774]
[1688187511757,0.3521,30410.0,30409.0,0.39837805]
[1688187512463,0.3521,30410.0,30409.0,0.3795286]
[1688187512768,0.3527,30410.0,30409.0,0.0244286]
[1688187514966,0.3527,30410.0,30409.0,0.41450774]
[1688187515156,0.3527,30410.0,30409.0,0.39627805]
[1688187515969,0.3527,30410.0,30409.0,0.41450774]
[1688187517181,0.3527,30410.0,30409.0,0.3774286]
[1688187518685,0.3527,30410.0,30409.0,0.41450774]
[1688187519484,0.3527,30410.0,30409.0,0.39627805]
[1688187519983,0.3527,30410.0,30409.0,0.41450774]
[1688187520184,0.3527,30410.0,30409.0,0.39627805]
[1688187520675,0.3527,30410.0,30409.0,0.41450774]
[1688187521184,0.3527,30410.0,30409.0,0.39627805]
[1688187521381,0.3527,30410.0,30409.0,0.41450774]
[1688187521588,0.3527,30410.0,30409.0,0.77530774]
[1688187521787,0.3527,30410.0,30409.0,0.77413471]
[1688187524390,0.3527,30410.0,30409.0,0.37625557]
[1688187524872,0.3527,30410.0,30409.0,0.02325557]
[1688187528184,0.3527,30410.0,30409.0,0.03858745]
[1688187528582,0.3527,30410.0,30409.0,0.019738]
[1688187530288,0.372438,30410.0,30409.0,0.019738]
[1688187531991,0.3527,30410.0,30409.0,0.03858745]
[1688187533197,0.3527,30410.0,30409.0,0.019738]
[1688187534388,0.3527,30410.0,30409.0,0.03796769]
[1688187535092,0.3527,30410.0,30409.0,0.39156769]
[1688187535281,0.3527,30410.0,30409.0,0.373338]
[1688187535684,0.3527,30410.0,30409.0,0.687438]
[1688187536694,0.54942739,30410.0,30409.0,0.687438]
[1688187539094,0.57186539,30410.0,30409.0,0.333838]
[1688187540595,0.55212739,30410.0,30409.0,0.333838]
[1688187540893,0.55212739,30410.0,30409.0,0.35268745]
[1688187541401,0.55212739,30410.0,30409.0,0.37091714]
[1688187542099,0.3554,30410.0,30409.0,0.35268745]
[1688187543203,0.3554,30410.0,30409.0,0.333838]
[1688187548903,0.3554,30410.0,30409.0,0.35206769]
[1688187549295,0.3554,30410.0,30409.0,0.333838]
[1688187549690,0.375138,30410.0,30409.0,0.333838]
[1688187549905,0.375138,30410.0,30409.0,0.019738]
[1688187550503,0.57186539,30410.0,30409.0,0.019738]
[1688187551609,0.55212739,30410.0,30409.0,0.019738]
[1688187551807,0.3554,30410.0,30409.0,0.019738]
[1688187552298,0.55212739,30410.0,30409.0,0.019738]
[1688187554702,0.40303025,30410.0,30409.0,0.019738]
[1688187557509,0.63284314,30410.0,30409.0,0.019738]
[1688187558201,0.40303025,30410.0,30409.0,0.019738]
[1688187559902,0.42276825,30410.0,30409.0,0.019738]
[1688187565522,0.40303025,30410.0,30409.0,0.019738]
[1688187571325,0.40303025,30410.0,30409.0,0.03858745]
[1688187572442,0.40303025,30410.0,30409.0,0.019738]
[1688187574227,0.3554,30410.0,30409.0,0.019738]
[1688187574427,0.40302967,30410.0,30409.0,0.373338]
[1688187575042,0.40302967,30410.0,30409.0,0.39156769]
[1688187575742,0.40302967,30410.0,30409.0,0.41041714]
[1688187576040,0.40302967,30410.0,30409.0,0.373338]
[1688187576836,0.40302967,30410.0,30409.0,0.019738]
[1688187579245,0.65300483,30410.0,30409.0,0.019738]
[1688187579944,0.42276767,30410.0,30409.0,0.019738]
[1688187581136,0.78356767,30410.0,30409.0,0.019738]
[1688187583039,0.42276767,30410.0,30409.0,0.019738]
[1688187583238,0.78356767,30410.0,30409.0,0.019738]
[1688187584949,0.76382967,30410.0,30409.0,0.019738]
[1688187587248,0.99406178,30410.0,30409.0,0.019738]
[1688187587840,0.40842967,30410.0,30409.0,0.373138]
[1688187588146,0.76082967,30410.0,30409.0,0.373138]
[1688187590051,0.76082967,30410.0,30409.0,0.39198745]
[1688187590846,0.76082967,30410.0,30409.0,0.41021714]
[1688187591046,0.76082967,30410.0,30409.0,0.39198745]
[1688187594747,0.99106178,30410.0,30409.0,0.39198745]
[1688187594948,0.63866178,30410.0,30409.0,0.39198745]
[1688187595256,0.27786178,30410.0,30409.0,0.39198745]
[1688187595458,0.27786178,30410.0,30409.0,0.41021714]
[1688187595956,0.04762967,30410.0,30409.0,0.77101714]
[1688187596255,0.19736903,30410.0,30409.0,0.77101714]
[1688187602469,0.19736903,30411.0,30409.0,0.77101714]
[1688187602768,0.19736903,30411.0,30410.0,0.3533]
[1688187603067,0.19736903,30411.0,30410.0,0.698837]
[1688187603256,0.19736903,30411.0,30410.0,0.71706669]
[1688187603458,0.19736903,30411.0,30410.0,0.73591614]
[1688187603964,0.19736903,30411.0,30410.0,0.71768645]
[1688187604158,0.55276903,30411.0,30410.0,0.698837]
[1688187605157,0.19736903,30411.0,30410.0,0.71706669]
[1688187605454,0.58563211,30412.0,30410.0,0.71768645]
[1688187605455,0.19736903,30412.0,30410.0,0.71768645]
[1688187605652,0.19736903,30412.0,30411.0,0.39336569]
[1688187605856,0.19786229,30413.0,30411.0,0.41221514]
[1688187606055,0.19786229,30413.0,30412.0,0.352]
[1688187606366,0.19786229,30413.0,30412.0,0.40881414]
[1688187606958,0.2073015,30413.0,30412.0,0.40881414]
[1688187607157,0.2073015,30413.0,30412.0,0.39058445]
[1688187608265,0.2073015,30413.0,30412.0,0.40881414]
[1688187608661,0.2073015,30413.0,30412.0,0.39058445]
[1688187609054,0.2073015,30413.0,30412.0,0.371735]
[1688187609259,0.2270365,30413.0,30412.0,0.371735]
[1688187609868,0.30752625,30413.0,30412.0,0.371735]
[1688187614271,0.28779125,30413.0,30412.0,0.371735]
[1688187614570,0.28779125,30413.0,30412.0,0.39058445]
[1688187614964,0.28779125,30413.0,30412.0,0.39218445]
[1688187614965,0.64159125,30413.0,30412.0,0.39218445]
[1688187615877,0.64159125,30413.0,30412.0,0.44657996]
[1688187616076,0.64159125,30413.0,30412.0,0.41041414]
[1688187616567,0.41135914,30413.0,30412.0,0.39218445]
[1688187617275,0.56091531,30413.0,30412.0,0.39218445]
[1688187619972,0.56091531,30413.0,30412.0,0.41041414]
[1688187620274,0.56091531,30413.0,30412.0,0.373335]
[1688187620468,0.58065031,30413.0,30412.0,0.373335]
[1688187624467,0.56091531,30413.0,30412.0,0.41041414]
[1688187624867,0.41135929,30413.0,30412.0,0.41041414]
[1688187625375,0.41135929,30413.0,30412.0,0.39218445]
[1688187626670,0.36373247,30413.0,30412.0,0.39218445]
[1688187627070,0.41135832,30413.0,30412.0,0.41041414]
[1688187627271,0.36373247,30413.0,30412.0,0.39218445]
[1688187627576,0.41135817,30413.0,30412.0,0.39218445]
[1688187627772,0.41135817,30413.0,30412.0,0.41041414]
[1688187628180,0.41135817,30413.0,30412.0,0.39218445]
[1688187628590,0.41135817,30413.0,30412.0,0.41041414]
[1688187628778,0.36373247,30413.0,30412.0,0.41041414]
[1688187629180,0.41135797,30413.0,30412.0,0.41041414]
[1688187629477,0.41135797,30413.0,30412.0,0.39218445]
[1688187629984,0.41135797,30413.0,30412.0,0.373335]
[1688187632280,0.56096436,30413.0,30412.0,0.373335]
[1688187634980,0.20716436,30413.0,30412.0,0.375135]
[1688187635487,0.20716436,30413.0,30412.0,0.41221414]
[1688187637091,0.20716436,30413.0,30412.0,0.39398445]
[1688187637479,0.20716436,30413.0,30412.0,0.41221414]
[1688187638084,0.20716436,30413.0,30412.0,0.375135]
[1688187638279,0.00993247,30413.0,30412.0,0.375135]
[1688187638484,0.05755909,30413.0,30412.0,0.375135]
[1688187638690,0.00993247,30413.0,30412.0,0.375135]
[1688187638891,0.05755931,30413.0,30412.0,0.375135]
[1688187640287,0.00993247,30413.0,30412.0,0.375135]
[1688187640494,0.20726119,30413.0,30412.0,0.375135]
[1688187640697,0.00993247,30413.0,30412.0,0.41221414]
[1688187640889,0.05755915,30413.0,30412.0,0.41221414]
[1688187641088,0.05755882,30413.0,30412.0,0.41221414]
[1688187642284,0.05755882,30413.0,30412.0,0.375135]
[1688187643689,0.05755882,30413.0,30412.0,0.39398445]
[1688187644099,0.05755882,30413.0,30412.0,0.41221414]
[1688187648102,0.28783526,30413.0,30412.0,0.41221414]
[1688187649307,0.28783526,30413.0,30412.0,0.39398445]
[1688187649711,0.28783526,30413.0,30412.0,0.41221414]
[1688187652814,0.28783526,30413.0,30412.0,0.39398445]
[1688187653107,0.28783526,30413.0,30412.0,0.41221414]
[1688187653707,0.28783526,30413.0,30412.0,0.77301414]
[1688187654409,0.05755882,30413.0,30412.0,0.77301414]
[1688187654611,0.28783526,30413.0,30412.0,0.77301414]
[1688187654910,0.2073404,30413.0,30412.0,0.77301414]
[1688187669818,0.28783285,30413.0,30412.0,0.75478445]
[1688187670012,0.28783285,30413.0,30412.0,0.735935]
[1688187670211,0.28783285,30413.0,30412.0,0.75416469]
[1688187671016,0.28783285,30413.0,30412.0,0.735935]
[1688187671817,0.28783285,30413.0,30412.0,0.75416469]
[1688187672402,0.28783285,30413.0,30412.0,0.77301414]
[1688187672605,0.28783285,30413.0,30412.0,0.41221414]
[1688187674410,0.28783285,30413.0,30412.0,0.39398445]
[1688187674610,0.28783285,30413.0,30412.0,0.41221414]